bitfinex/quotes_BTCUSD_20251214
["timestamp","ask_amount","ask_price","bid_price","bid_amount"]
[1765686476917,0.25456304,90364.0,90363.0,1.01354892]
[1765686477720,0.25456304,90364.0,90363.0,0.05924892]
[1765686477869,0.25456304,90364.0,90363.0,1.01344892]
[1765686478476,0.25456304,90364.0,90363.0,0.97364]
[1765686478670,0.25456304,90364.0,90363.0,0.96094]
[1765686479814,0.25456304,90364.0,90363.0,0.95594]
[1765686480783,0.25456304,90364.0,90363.0,0.01944]
[1765686481068,0.25456304,90364.0,90363.0,0.95604]
[1765686481880,0.25456304,90364.0,90363.0,0.95614]
[1765686482037,0.25456304,90364.0,90363.0,0.01944]
[1765686491962,0.30985804,90364.0,90363.0,0.01944]
[1765686492362,0.25456304,90364.0,90363.0,0.01944]
[1765686500512,0.30985804,90364.0,90363.0,0.01944]
[1765686501184,0.36517504,90364.0,90363.0,0.002]
[1765686502083,0.36517504,90364.0,90363.0,0.001]
[1765686502411,0.36617504,90364.0,90363.0,0.001]
[1765686502623,0.22134422,90357.0,90356.0,0.00067375]
[1765686503244,0.25458265,90357.0,90356.0,0.00067375]
[1765686518961,0.36519465,90357.0,90356.0,0.00067375]
[1765686535717,0.25458265,90357.0,90356.0,0.00067375]
[1765686554139,0.22134422,90357.0,90356.0,1.03838375]
[1765686582648,0.22134422,90357.0,90356.0,1.04038375]
[1765686583229,0.22134422,90357.0,90356.0,1.04138375]
[1765686588819,0.22134381,90358.0,90356.0,0.04138375]
[1765686588986,0.22134381,90358.0,90357.0,0.02316]
[1765686589184,0.22134381,90358.0,90357.0,0.05133]
[1765686590352,0.22134381,90358.0,90357.0,0.05233]
[1765686590914,0.22134381,90358.0,90357.0,0.05333]
[1765686604095,0.22134381,90358.0,90357.0,0.11307619]
[1765686618617,0.23240844,90359.0,90357.0,1.11307619]
[1765686618752,0.23240844,90359.0,90358.0,1.07621272]
[1765686618949,0.23240844,90359.0,90358.0,1.10073272]
[1765686619151,0.22133782,90360.0,90358.0,1.10234559]
[1765686619355,0.01106659,90362.0,90358.0,1.10234559]
[1765686619356,0.01106659,90362.0,90360.0,1.0]
[1765686619555,0.01106659,90362.0,90361.0,1.04627]
[1765686619985,0.01106659,90362.0,90361.0,1.07079]
[1765686620780,0.01106659,90362.0,90361.0,1.07179]
[1765686620982,0.01106659,90362.0,90361.0,1.07279]
[1765686621328,0.01106659,90362.0,90361.0,1.07179]
[1765686621658,0.01106659,90362.0,90361.0,1.07279]
[1765686624059,0.23239123,90365.0,90362.0,1.0]
[1765686624060,0.23239342,90364.0,90362.0,1.0]
[1765686624291,0.23239342,90364.0,90363.0,1.0]
[1765686624579,0.01106635,90364.0,90363.0,1.05106]
[1765686626513,0.01106635,90364.0,90363.0,1.05206]
[1765686626685,0.01106635,90364.0,90363.0,0.05206]
[1765686626863,0.01106635,90364.0,90363.0,1.05206]
[1765686627069,0.01106635,90364.0,90363.0,1.05306]
[1765686627653,0.01106635,90364.0,90363.0,0.05306]
[1765686627885,0.22132462,90365.0,90364.0,1.0]
[1765686628088,0.22132462,90365.0,90364.0,1.04131]
[1765686629012,0.23239048,90366.0,90364.0,0.04131]
[1765686629217,0.23239048,90366.0,90365.0,0.05345]
[1765686635614,0.23222307,90366.0,90365.0,0.05345]
[1765686638672,0.23222307,90366.0,90365.0,0.16416046]
[1765686639011,0.23222307,90366.0,90365.0,0.05345]
[1765686642790,0.01089869,90366.0,90365.0,0.05345]
[1765686643411,0.23238314,90368.0,90365.0,0.05345]
[1765686643617,0.23238314,90368.0,90366.0,0.0248]
[1765686643820,0.23238314,90368.0,90367.0,0.02865]
[1765686644200,0.23238314,90368.0,90367.0,0.05345]
[1765686645403,0.23238314,90368.0,90367.0,1.05345]
[1765686646242,0.23238314,90368.0,90367.0,0.05345]
[1765686646441,0.23238314,90368.0,90367.0,1.05345]
[1765686653397,0.23238314,90368.0,90367.0,0.05345]
[1765686653611,0.23238314,90368.0,90367.0,1.05345]
[1765686656243,0.01106586,90368.0,90367.0,1.05345]
[1765686657605,0.22131728,90368.0,90367.0,1.05345]
[1765686657829,0.01106574,90369.0,90368.0,1.0]
[1765686658148,0.01106574,90369.0,90368.0,1.03963]
[1765686658347,0.01106574,90369.0,90368.0,1.03953535]
[1765686667712,0.01063843,90369.0,90368.0,1.03953535]
[1765686683933,0.01063843,90369.0,90368.0,1.05103535]
[1765686686493,0.01063843,90369.0,90368.0,0.05113]
[1765686686770,0.00023839,90371.0,90370.0,0.11071046]
[1765686686968,0.00023839,90371.0,90370.0,1.13884046]
[1765686687085,0.00023839,90371.0,90370.0,1.16290046]
[1765686688029,0.00023839,90371.0,90370.0,1.16490046]
[1765686689391,0.00023839,90371.0,90370.0,1.16690046]
[1765686690585,0.00023839,90371.0,90370.0,0.16690046]
[1765686690789,0.00023839,90371.0,90370.0,1.16690046]
[1765686692110,0.00023839,90371.0,90370.0,1.38821284]
[1765686700711,0.00023839,90371.0,90370.0,1.05780287]
[1765686702481,0.00023839,90371.0,90370.0,1.27911525]
[1765686704064,0.00023839,90371.0,90370.0,1.05780287]
[1765686704630,0.00023839,90371.0,90370.0,1.06886812]
[1765686704836,0.00023839,90371.0,90370.0,1.05780287]
[1765686718133,0.00023839,90371.0,90370.0,1.16851333]
[1765686726332,0.00023839,90371.0,90370.0,1.25912806]
[1765686728130,0.00023839,90371.0,90370.0,1.25712806]
[1765686728952,0.00023839,90371.0,90370.0,1.25512806]
[1765686729369,0.00023839,90371.0,90370.0,1.25912806]
[1765686744307,0.00023839,90371.0,90370.0,1.06886763]
[1765686746293,0.00023839,90371.0,90370.0,1.17957809]
[1765686746513,0.00023839,90371.0,90370.0,1.06886763]
[1765686746671,0.00023839,90371.0,90370.0,0.004]
[1765686746672,0.22154832,90371.0,90370.0,0.004]
[1765686747058,0.22154832,90371.0,90370.0,0.04381173]
[1765686747361,0.22154832,90371.0,90370.0,0.04178915]
[1765686747602,0.22154832,90371.0,90370.0,0.002]
[1765686748515,0.22154832,90371.0,90370.0,0.003]
[1765686748821,0.22154832,90371.0,90370.0,0.002]
[1765686749196,0.22154832,90371.0,90369.0,0.03978915]
[1765686749403,0.22131483,90369.0,90368.0,0.03978915]
[1765686750368,0.22131483,90369.0,90367.0,0.03978915]
[1765686751414,0.22131972,90367.0,90366.0,1.03978915]
[1765686755448,0.22131972,90367.0,90366.0,1.0]
[1765686755859,0.22131972,90367.0,90366.0,1.03978915]
[1765686756219,0.22131972,90367.0,90366.0,1.0]
[1765686758428,0.22131972,90367.0,90366.0,1.03978915]
[1765686762223,0.22131972,90367.0,90366.0,1.0]
[1765686765476,0.22131972,90367.0,90366.0,1.03978915]
[1765686765877,0.22131972,90367.0,90366.0,1.15049961]
[1765686766304,0.22131972,90367.0,90366.0,1.03978915]
[1765686770508,0.22131972,90367.0,90365.0,1.0]
[1765686770765,0.22132462,90365.0,90364.0,0.01194]
[1765686771097,0.22132462,90365.0,90364.0,1.01194]
[1765686771485,0.22132462,90365.0,90364.0,1.03452]
[1765686771874,0.22132462,90365.0,90364.0,0.03452]
[1765686772075,0.22132462,90365.0,90364.0,1.03452]
[1765686772236,0.22132462,90365.0,90364.0,1.03552]
[1765686772644,0.22132462,90365.0,90364.0,1.03652]
[1765686774490,0.22132462,90365.0,90364.0,1.09623363]
[1765686775457,0.22132462,90365.0,90364.0,1.01394]
[1765686775655,0.22132462,90365.0,90364.0,1.03833]
[1765686775873,0.22132462,90365.0,90364.0,1.01394]
[1765686780056,0.22132462,90365.0,90364.0,0.01394]
[1765686780368,0.22132462,90365.0,90364.0,1.01394]
[1765686782755,0.22132462,90365.0,90364.0,1.03833]
[1765686789562,0.22132462,90365.0,90364.0,1.01394]
[1765686793167,0.22132462,90365.0,90364.0,0.01394]
[1765686793370,0.22132462,90365.0,90364.0,1.01394]
[1765686795595,0.22132462,90365.0,90364.0,1.03833]
[1765686804099,0.22132462,90365.0,90364.0,1.01394]
[1765686804403,0.22132462,90365.0,90364.0,0.01394]
[1765686804539,0.22132462,90365.0,90364.0,1.01394]
[1765686805260,0.22132462,90365.0,90364.0,1.002]
[1765686815813,0.22132462,90365.0,90364.0,0.002]
[1765686816012,0.22132462,90365.0,90364.0,1.002]
[1765686841557,0.22132462,90365.0,90364.0,0.002]
[1765686841758,0.22132462,90365.0,90364.0,1.002]
[1765686843728,0.23237871,90370.0,90364.0,1.002]
[1765686843729,0.01130388,90371.0,90367.0,0.01106598]
[1765686843935,0.00023839,90371.0,90370.0,1.24978238]
[1765686844137,0.44247414,90401.0,90370.0,1.24978238]
[1765686844138,0.04429184,90387.0,90377.0,0.05001839]
[1765686844289,0.01106366,90386.0,90384.0,1.13918046]
[1765686844488,0.27127565,90385.0,90384.0,1.14079333]
[1765686844650,0.05041708,90385.0,90384.0,1.22325002]
[1765686844852,0.05041708,90385.0,90384.0,1.16361333]
[1765686845060,0.27169273,90385.0,90384.0,1.19683593]
[1765686845259,0.27169273,90385.0,90384.0,1.25642525]
[1765686845456,0.27169273,90385.0,90384.0,1.14571479]
[1765686845746,0.27169273,90385.0,90384.0,1.0332226]
[1765686845931,0.27169273,90385.0,90378.0,0.02985]
[1765686845932,0.22128789,90380.0,90379.0,1.0]
[1765686846424,0.22128789,90380.0,90379.0,1.03973143]
[1765686846983,0.22128789,90380.0,90379.0,1.0]
[1765686847166,0.22128789,90380.0,90379.0,1.001]
[1765686847375,0.22128789,90380.0,90379.0,1.0]
[1765686848668,0.22128789,90380.0,90379.0,1.001]
[1765686849469,0.22128789,90380.0,90379.0,1.04071612]
[1765686851330,0.22155603,90380.0,90379.0,1.04071612]
[1765686854251,0.22155603,90380.0,90379.0,1.001]
[1765686855717,0.22155603,90380.0,90379.0,1.04071612]
[1765686858798,0.22155603,90380.0,90379.0,1.04069735]
[1765686858997,0.22155603,90380.0,90379.0,1.001]
[1765686860298,0.22155603,90380.0,90379.0,1.04069778]
[1765686861470,0.22155603,90380.0,90379.0,1.001]
[1765686862231,0.22155603,90380.0,90379.0,1.04070014]
[1765686862455,0.22155603,90380.0,90379.0,1.001]
[1765686862876,0.22155603,90380.0,90379.0,1.05390287]
[1765686863277,0.00026814,90380.0,90379.0,1.05390287]
[1765686863865,0.00026814,90380.0,90379.0,1.06496714]
[1765686872306,0.00026814,90380.0,90379.0,1.12455646]
[1765686873308,0.00026814,90380.0,90379.0,1.06496714]
[1765686873524,0.22155603,90380.0,90379.0,1.06496714]
[1765686873647,0.00026814,90380.0,90379.0,1.06496714]
[1765686884338,0.00026814,90380.0,90379.0,0.06496714]
[1765686884560,0.00026814,90380.0,90379.0,1.06496714]
[1765686885948,0.00026814,90380.0,90379.0,1.05390287]
[1765686889441,0.22155603,90380.0,90379.0,1.05390287]
[1765686889571,0.00026814,90380.0,90379.0,1.05390287]
[1765686889910,0.22155603,90380.0,90379.0,1.05390287]
[1765686894518,0.22155603,90380.0,90379.0,1.03108287]
[1765686895765,0.22155603,90380.0,90379.0,1.001]
[1765686902592,0.22155603,90380.0,90379.0,0.001]
[1765686902824,0.33216803,90380.0,90379.0,0.001]
[1765686903685,0.33216803,90380.0,90378.0,0.01744]
[1765686903686,0.110612,90379.0,90378.0,0.01744]
[1765686904185,0.11085035,90379.0,90378.0,0.01744]
[1765686905772,0.11185035,90379.0,90378.0,0.01744]
[1765686906069,0.11285035,90379.0,90378.0,0.01744]
[1765686907207,0.14051164,90379.0,90378.0,0.01744]
[1765686917414,0.02989964,90379.0,90378.0,0.01744]
[1765686917620,0.08519464,90379.0,90378.0,0.01744]
[1765686929990,0.22129768,90376.0,90375.0,0.03979045]
[1765686932406,0.22130748,90372.0,90371.0,0.05967601]
[1765686933361,0.22130748,90372.0,90370.0,0.01744]
[1765686933767,0.110612,90371.0,90370.0,0.01744]
[1765686933966,0.055295,90371.0,90370.0,0.01744]
[1765686935260,0.22130748,90372.0,90370.0,0.01744]
[1765686935437,0.055295,90371.0,90370.0,0.01744]
[1765686936540,0.22130748,90372.0,90370.0,0.01744]
[1765686936754,0.27660248,90372.0,90370.0,0.01844]
[1765686937374,0.27660248,90372.0,90370.0,0.01744]
[1765686938287,0.22130748,90372.0,90370.0,0.01744]
[1765686939774,0.02766374,90371.0,90370.0,0.01744]
[1765686941077,0.02766374,90371.0,90370.0,0.01844]
[1765686942464,0.22130748,90372.0,90370.0,0.01844]
[1765686943519,0.22130748,90372.0,90370.0,0.01744]
[1765686952021,0.22004748,90372.0,90370.0,0.01744]
[1765686960781,0.02766374,90371.0,90370.0,0.01744]
[1765686961370,0.22004748,90372.0,90370.0,0.01744]
[1765686962107,0.22004748,90372.0,90370.0,0.01844]
[1765686962937,0.110612,90371.0,90370.0,0.01844]
[1765686963108,0.22004748,90372.0,90370.0,0.01844]
[1765686963429,0.27534248,90372.0,90370.0,0.01744]
[1765686964394,0.22004748,90372.0,90370.0,0.01744]
[1765686968044,0.02766374,90371.0,90370.0,0.01744]
[1765686968611,0.08295874,90371.0,90370.0,0.01744]
[1765686968813,0.02766374,90371.0,90370.0,0.01744]
[1765686969127,0.08295874,90371.0,90370.0,0.01744]
[1765686969529,0.08295874,90371.0,90370.0,0.01844]
[1765686969943,0.02766374,90371.0,90370.0,0.01844]
[1765686970144,0.08295874,90371.0,90370.0,0.07816183]
[1765686971291,0.02766374,90371.0,90370.0,0.07816183]
[1765686974354,0.02766374,90371.0,90370.0,0.01844]
[1765686974355,0.13827574,90371.0,90370.0,0.01844]
[1765686974559,0.110612,90371.0,90370.0,0.01844]
[1765686975313,0.110612,90371.0,90370.0,0.01744]
[1765686977555,0.110612,90371.0,90370.0,0.05725075]
[1765686977556,0.14384697,90371.0,90370.0,0.05725075]
[1765686979283,0.14384697,90371.0,90370.0,0.01744]
[1765686995651,0.03323497,90371.0,90370.0,0.01744]
[1765687001335,0.08852997,90371.0,90370.0,0.01744]
[1765687004799,0.17151071,90371.0,90370.0,0.01744]
[1765687017060,0.06089871,90371.0,90370.0,0.01744]
[1765687017248,0.11619371,90371.0,90370.0,0.01744]
[1765687019708,0.33194397,90362.0,90359.0,0.03981075]
[1765687019886,0.33194397,90362.0,90356.0,0.03981075]
[1765687019887,0.12167896,90359.0,90356.0,0.03981075]
[1765687020295,0.12167896,90359.0,90357.0,1.0]
[1765687020496,0.2545802,90358.0,90357.0,0.8784]
[1765687021108,0.2545802,90358.0,90357.0,0.91821075]
[1765687021299,0.2545802,90358.0,90357.0,0.8784]
[1765687021515,0.2545802,90358.0,90357.0,1.0]
[1765687022015,0.2545802,90358.0,90356.0,1.0]
[1765687022384,0.22134667,90356.0,90355.0,0.03981075]
[1765687022550,0.22134667,90356.0,90355.0,1.03981075]
[1765687023167,0.2545851,90356.0,90355.0,1.03981075]
[1765687024026,0.2545851,90356.0,90355.0,1.0]
[1765687026274,0.2545851,90356.0,90354.0,1.0]
[1765687026498,0.22135157,90354.0,90353.0,1.03981075]
[1765687026817,0.25459,90354.0,90353.0,1.03981075]
[1765687028137,0.25459,90354.0,90353.0,1.04081075]
[1765687028739,0.25459,90354.0,90353.0,1.04181075]
[1765687030351,0.25459,90354.0,90353.0,0.91041075]
[1765687030561,0.25459,90354.0,90353.0,0.90951075]
[1765687031529,0.25459,90354.0,90353.0,1.00931075]
[1765687032041,0.365202,90354.0,90353.0,0.92001075]
[1765687032385,0.365202,90354.0,90353.0,0.89041075]
[1765687032589,0.365202,90354.0,90353.0,0.89021075]
[1765687033599,0.365202,90354.0,90353.0,0.88891075]
[1765687034544,0.365202,90354.0,90353.0,0.91511075]
[1765687034910,0.365202,90354.0,90353.0,0.88701075]
[1765687035535,0.365202,90354.0,90353.0,0.88761075]
[1765687036167,0.25459,90354.0,90353.0,0.84011075]
[1765687036406,0.25459,90354.0,90353.0,0.8003]
[1765687036407,0.309885,90354.0,90353.0,0.8003]
[1765687036570,0.309885,90354.0,90353.0,0.8]
[1765687037225,0.309885,90354.0,90353.0,0.83881075]
[1765687037383,0.309885,90354.0,90353.0,0.799]
[1765687037592,0.25459,90354.0,90353.0,1.0]
[1765687037770,0.310885,90354.0,90353.0,1.0]
[1765687037999,0.310885,90354.0,90353.0,1.03981075]
[1765687038567,0.311885,90354.0,90353.0,1.03981075]
[1765687039608,0.311885,90354.0,90353.0,1.0]
[1765687041328,0.311885,90354.0,90353.0,1.03981075]
[1765687042745,0.25659,90354.0,90353.0,1.03981075]
[1765687043150,0.311885,90354.0,90353.0,1.03981075]
[1765687043682,0.25659,90354.0,90353.0,1.03981075]
[1765687044064,0.311885,90354.0,90353.0,1.03981075]
[1765687044289,0.311885,90354.0,90353.0,1.0]
[1765687044491,0.25659,90354.0,90353.0,1.0]
[1765687045038,0.367202,90354.0,90353.0,0.8355]
[1765687045698,0.367202,90354.0,90353.0,0.8406]
[1765687045879,0.25659,90354.0,90353.0,0.8223]
[1765687046661,0.25659,90354.0,90353.0,1.0]
[1765687053567,0.367202,90354.0,90353.0,1.0]
[1765687053763,0.25659,90354.0,90353.0,1.0]
[1765687053992,0.311885,90354.0,90353.0,1.0]
[1765687057320,0.25659,90354.0,90353.0,1.0]
[1765687058983,0.25659,90354.0,90353.0,0.174]
[1765687058984,0.367202,90354.0,90353.0,0.174]
[1765687059587,0.25659,90354.0,90352.0,0.07716183]
[1765687060023,0.055295,90353.0,90352.0,0.07716183]
[1765687060223,0.08853509,90353.0,90352.0,1.07716183]
[1765687061219,0.03324009,90353.0,90352.0,1.07716183]
[1765687061426,0.08853509,90353.0,90352.0,1.07716183]
[1765687061652,0.03324009,90353.0,90352.0,1.07716183]
[1765687064676,0.03324009,90353.0,90352.0,1.01744]
[1765687064982,0.08853509,90353.0,90352.0,1.01744]
[1765687066331,0.03324009,90353.0,90352.0,1.01744]
[1765687067507,0.03324009,90353.0,90352.0,1.05659]
[1765687068058,0.22135157,90354.0,90352.0,0.05659]
[1765687068295,0.22135157,90354.0,90353.0,0.05974837]
[1765687068507,0.22135157,90354.0,90352.0,0.05659]
[1765687069792,0.22235157,90354.0,90353.0,0.05974526]
[1765687069999,0.22135157,90354.0,90352.0,0.05659]
[1765687070954,0.22235157,90354.0,90352.0,0.05659]
[1765687071107,0.22135157,90354.0,90352.0,0.05659]
[1765687072462,0.22235157,90354.0,90352.0,0.05659]
[1765687073384,0.22235157,90354.0,90352.0,0.01744]
[1765687073596,0.22235157,90354.0,90353.0,0.05972867]
[1765687075430,0.22135157,90354.0,90353.0,0.05972867]
[1765687075753,0.22235157,90354.0,90353.0,0.05972867]
[1765687087450,0.27764657,90354.0,90353.0,0.05972867]
[1765687087663,0.22235157,90354.0,90353.0,0.05972867]
[1765687087824,0.2211848,90354.0,90353.0,0.05972867]
[1765687088387,0.2764798,90354.0,90353.0,0.05972867]
[1765687089079,0.2211848,90354.0,90353.0,0.05972867]
[1765687090249,0.2764798,90354.0,90353.0,0.05972867]
[1765687090396,0.2211848,90354.0,90353.0,0.05972867]
[1765687091017,0.2764798,90354.0,90353.0,0.05972867]
[1765687091254,0.2211848,90354.0,90353.0,0.05972867]
[1765687091457,0.2764798,90354.0,90353.0,0.05972867]
[1765687091755,0.2211848,90354.0,90353.0,0.05972867]
[1765687092336,0.2764798,90354.0,90353.0,0.05972867]
[1765687093361,0.2211848,90354.0,90353.0,0.05972867]
[1765687095730,0.2211848,90354.0,90352.0,0.07716867]
[1765687097243,0.2201848,90354.0,90352.0,0.07716867]
[1765687097444,0.2211848,90354.0,90352.0,0.07716867]
[1765687110914,0.2211848,90354.0,90352.0,0.01744]
[1765687112944,0.2211848,90354.0,90352.0,0.07716867]
[1765687114162,0.2211848,90354.0,90353.0,0.05972867]
[1765687116089,0.2211848,90354.0,90352.0,0.07716867]
[1765687116287,0.2201848,90354.0,90352.0,0.07716867]
[1765687117338,0.2211848,90354.0,90352.0,0.07716867]
[1765687126453,0.2211848,90354.0,90352.0,0.01744]
[1765687128215,0.03324009,90353.0,90352.0,0.01744]
[1765687128419,0.03324009,90353.0,90352.0,1.01744]
[1765687131760,0.08853509,90353.0,90352.0,1.01744]
[1765687132332,0.03324009,90353.0,90352.0,1.01744]
[1765687132647,0.03324009,90353.0,90352.0,1.07716867]
[1765687154983,0.03324009,90353.0,90352.0,1.01744]
[1765687156973,0.03324009,90353.0,90352.0,1.07716867]
[1765687168888,0.03324009,90353.0,90352.0,1.01744]
[1765687170540,0.03324009,90353.0,90352.0,1.07716867]
[1765687171985,0.03324009,90353.0,90352.0,1.01744]
[1765687175411,0.03324009,90353.0,90352.0,1.07716867]
[1765687190860,0.03324009,90353.0,90352.0,1.01744]
[1765687191060,0.03324009,90353.0,90352.0,1.07716867]
[1765687196944,0.03324009,90353.0,90352.0,1.07718165]
[1765687197105,0.03324009,90353.0,90352.0,1.01744]
[1765687197311,0.03324009,90353.0,90352.0,1.07718116]
[1765687200538,0.03324009,90353.0,90352.0,1.10118116]
[1765687200742,0.03324009,90353.0,90352.0,1.07718116]
[1765687206007,0.03324009,90353.0,90352.0,1.12960116]
[1765687207631,0.03324009,90353.0,90352.0,1.13121403]
[1765687208253,0.2201848,90354.0,90353.0,1.0]
[1765687208400,0.25342264,90354.0,90353.0,1.04212287]
[1765687209600,0.25442264,90354.0,90353.0,1.04212287]
[1765687225935,0.25442264,90354.0,90353.0,0.04212287]
[1765687226137,0.25442264,90354.0,90353.0,1.04212287]
[1765687227114,0.25442264,90354.0,90353.0,1.05458287]
[1765687228574,0.25442264,90354.0,90353.0,1.03058287]
[1765687229784,0.25442264,90354.0,90353.0,0.97828287]
[1765687230001,0.25442264,90354.0,90353.0,0.96728287]
[1765687230220,0.25442264,90354.0,90353.0,0.98158287]
[1765687230446,0.25442264,90354.0,90353.0,0.96998287]
[1765687230654,0.25442264,90354.0,90353.0,0.88388287]
[1765687231044,0.25442264,90354.0,90353.0,0.03058287]
[1765687231348,0.25442264,90354.0,90353.0,0.89208287]
[1765687232120,0.25442264,90354.0,90353.0,0.91638287]
[1765687232371,0.25442264,90354.0,90353.0,0.90588287]
[1765687232724,0.25442264,90354.0,90353.0,0.88728287]
[1765687233167,0.25442264,90354.0,90353.0,0.91158287]
[1765687233372,0.25442264,90354.0,90353.0,0.88618287]
[1765687233577,0.25442264,90354.0,90353.0,0.86738287]
[1765687234202,0.25442264,90354.0,90353.0,0.88728287]
[1765687235047,0.25442264,90354.0,90353.0,0.05439287]
[1765687235247,0.25442264,90354.0,90353.0,1.05439287]
[1765687238192,0.25442264,90354.0,90353.0,0.05439287]
[1765687238532,0.25442264,90354.0,90353.0,1.05439287]
[1765687238883,0.25442264,90354.0,90353.0,1.11413403]
[1765687247795,0.25442264,90354.0,90353.0,1.09032403]
[1765687248417,0.25442264,90354.0,90353.0,1.11413403]
[1765687249033,0.2211848,90354.0,90353.0,1.11413403]
[1765687265441,0.2211848,90354.0,90353.0,0.11413403]
[1765687265647,0.2211848,90354.0,90353.0,1.11413403]
[1765687274586,0.2211848,90354.0,90353.0,0.11413403]
[1765687274787,0.2211848,90354.0,90353.0,1.11413403]
[1765687274918,0.2211848,90354.0,90353.0,1.09032403]
[1765687275128,0.2211848,90354.0,90353.0,1.03058287]
[1765687275532,0.2211848,90354.0,90353.0,1.0]
[1765687275748,0.2211848,90354.0,90352.0,0.01744]
[1765687275749,0.110612,90353.0,90352.0,0.01744]
[1765687275956,0.110612,90353.0,90352.0,0.57624]
[1765687276505,0.14385297,90353.0,90352.0,0.57624]
[1765687276637,0.14385297,90353.0,90352.0,0.57434]
[1765687277285,0.22135647,90352.0,90350.0,0.4324]
[1765687277487,0.110612,90351.0,90350.0,0.4324]
[1765687277686,0.27665637,90350.0,90349.0,0.44192085]
[1765687278479,0.30989734,90350.0,90349.0,0.37712085]
[1765687278780,0.31089734,90350.0,90349.0,0.37712085]
[1765687279175,0.31089734,90350.0,90349.0,0.33182085]
[1765687279586,0.31089734,90350.0,90349.0,0.34332085]
[1765687280478,0.31089734,90350.0,90349.0,0.26762085]
[1765687280878,0.31089734,90350.0,90349.0,0.19782085]
[1765687281778,0.31089734,90350.0,90349.0,0.19642085]
[1765687282212,0.31089734,90350.0,90349.0,0.00112085]
[1765687282868,0.25560234,90350.0,90349.0,0.00112085]
[1765687283102,0.36621434,90350.0,90349.0,0.00112085]
[1765687283299,0.65691434,90350.0,90349.0,0.00112085]
[1765687284107,0.65591434,90350.0,90349.0,0.00112085]
[1765687284349,0.65791434,90350.0,90349.0,0.00112085]
[1765687284562,0.65991434,90350.0,90349.0,0.00112085]
[1765687285276,0.65791434,90350.0,90349.0,0.00112085]
[1765687285699,0.66091434,90350.0,90349.0,0.00112085]
[1765687285904,0.66091434,90350.0,90320.0,0.01259]
[1765687285905,0.22143244,90321.0,90320.0,0.0002]
[1765687286109,0.33204444,90321.0,90320.0,0.0002]
[1765687286514,0.36529794,90321.0,90320.0,0.0002]
[1765687287152,0.36529794,90321.0,90320.0,0.0012]
[1765687287355,0.36529794,90321.0,90320.0,0.0032]
[1765687291546,0.36529794,90321.0,90320.0,0.00406477]
[1765687293851,0.25468594,90321.0,90320.0,0.00406477]
[1765687294033,0.36529794,90321.0,90320.0,0.00406477]
[1765687296775,0.25468594,90321.0,90320.0,0.00406477]
[1765687297282,0.30998094,90321.0,90320.0,0.00406477]
[1765687298081,0.25468594,90321.0,90320.0,0.00406477]
[1765687299015,0.30998094,90321.0,90320.0,0.00406477]
[1765687300722,0.25468594,90321.0,90320.0,0.00406477]
[1765687310144,0.22143244,90321.0,90320.0,0.00406477]
[1765687310786,0.22143244,90321.0,90320.0,1.00406477]
[1765687311003,0.22143244,90321.0,90320.0,1.02837477]
[1765687315605,0.22143244,90321.0,90320.0,1.00406477]
[1765687316431,0.22143244,90321.0,90320.0,0.00406477]
[1765687316628,0.56742744,90321.0,90320.0,0.00406477]
[1765687316830,0.54539037,90321.0,90320.0,0.00406477]
[1765687317087,0.65600237,90321.0,90320.0,0.00406477]
[1765687317850,0.65600237,90321.0,90320.0,0.00306477]
[1765687318294,0.65900237,90321.0,90320.0,0.00106477]
[1765687318717,0.66200237,90321.0,90320.0,0.00106477]
[1765687319506,0.65900237,90321.0,90320.0,0.00106477]
[1765687320086,0.66200237,90321.0,90320.0,0.00106477]
[1765687324653,0.65900237,90321.0,90320.0,0.00106477]
[1765687325060,0.65700237,90321.0,90320.0,0.00106477]
[1765687325403,0.65900237,90321.0,90320.0,0.00106477]
[1765687326681,0.65900237,90321.0,90310.0,1e-08]
[1765687326682,0.56745196,90311.0,90310.0,1e-08]
[1765687326902,0.56745196,90311.0,90290.0,0.0002]
[1765687326903,0.56750101,90291.0,90290.0,0.0002]
[1765687327263,0.62765307,90291.0,90290.0,0.0002]
[1765687327465,0.62284255,90281.0,90280.0,0.0004]
[1765687327850,0.62286709,90271.0,90270.0,0.0004]
[1765687328048,0.64034709,90271.0,90270.0,0.0004]
[1765687328677,0.67362752,90271.0,90270.0,0.0004]
[1765687329319,0.67362752,90271.0,90260.0,0.0004]
[1765687329320,0.5676599,90267.0,90260.0,0.0004]
[1765687330809,0.5706599,90267.0,90260.0,0.0004]
[1765687331036,0.65396053,90267.0,90260.0,0.0004]
[1765687335812,0.62289164,90261.0,90260.0,0.0004]
[1765687336169,0.62289164,90261.0,90260.0,0.00219065]
[1765687336767,0.64037164,90261.0,90260.0,0.00219065]
[1765687336966,0.64137164,90261.0,90260.0,0.00219065]
[1765687337317,0.64237164,90261.0,90260.0,0.00219065]
[1765687337745,0.67565565,90261.0,90260.0,0.00219065]
[1765687337949,0.67565565,90261.0,90260.0,6.5e-07]
[1765687339823,0.72567404,90261.0,90260.0,6.5e-07]
[1765687340043,0.401312,90251.0,90240.0,0.0002]
[1765687340405,0.62291619,90251.0,90240.0,0.0002]
[1765687340584,0.64039619,90251.0,90240.0,0.0002]
[1765687340886,0.67368401,90251.0,90240.0,0.0002]
[1765687341443,0.67668401,90251.0,90240.0,0.0002]
[1765687342870,0.67968401,90251.0,90240.0,0.0002]
[1765687344060,0.90640401,90251.0,90240.0,0.0002]
[1765687344438,0.92388401,90251.0,90240.0,0.0002]
[1765687344714,0.90640401,90251.0,90240.0,0.0002]
[1765687345154,0.90340401,90251.0,90240.0,0.0002]
[1765687345506,0.90340401,90251.0,90250.0,0.00069857]
[1765687345507,0.90440401,90251.0,90250.0,0.00069857]
[1765687345880,0.90140401,90251.0,90250.0,0.00069857]
[1765687346358,0.90340401,90251.0,90250.0,0.00069857]
[1765687346963,0.90340401,90251.0,90250.0,0.00108324]
[1765687355687,0.90340401,90251.0,90250.0,3.24e-06]
[1765687356230,0.91374417,90251.0,90250.0,3.24e-06]
[1765687357253,0.93758798,90251.0,90250.0,3.24e-06]
[1765687357665,0.98760637,90251.0,90250.0,3.24e-06]
[1765687357867,1.01744357,90251.0,90250.0,3.24e-06]
[1765687358469,1.01544357,90251.0,90250.0,3.24e-06]
[1765687358675,1.01444357,90251.0,90250.0,3.24e-06]
[1765687359032,1.02144357,90251.0,90250.0,3.24e-06]
[1765687360108,0.05539499,90235.0,90234.0,0.09934966]
[1765687360300,0.6129239,90235.0,90234.0,0.09941794]
[1765687360494,0.57807863,90235.0,90234.0,0.09941794]
[1765687360660,0.6665863,90235.0,90234.0,0.09941794]
[1765687365635,0.6665863,90235.0,90234.0,0.09989577]